bitfinex/quotes_ETHUSD_20250123
["timestamp","ask_amount","ask_price","bid_price","bid_amount"]
[1737624091245,3.85725,3218.0,3217.8,0.14137743]
[1737624091746,3.85725,3218.0,3217.4,3.10805]
[1737624092162,3.85725,3218.0,3217.5,3.108]
[1737624092619,3.85725,3218.0,3217.5,3.24943877]
[1737624093320,0.7497,3218.0,3217.5,3.24943877]
[1737624093922,0.7497,3218.0,3217.6,0.14143877]
[1737624095522,0.7497,3218.0,3217.7,0.14143877]
[1737624096614,0.7497,3218.2,3217.7,0.14143877]
[1737624096948,0.7497,3218.2,3217.7,0.7624]
[1737624097151,0.7497,3218.2,3217.8,3.10765]
[1737624097453,0.7497,3218.2,3217.7,0.7624]
[1737624097657,0.7497,3218.2,3217.8,3.1077]
[1737624098724,0.7497,3218.2,3217.9,3.10761]
[1737624098920,0.7497,3218.2,3217.7,3.87014]
[1737624099330,0.7497,3218.2,3217.9,0.14158798]
[1737624100047,0.7497,3218.2,3217.8,3.10769]
[1737624102932,0.7497,3218.2,3217.9,0.14168489]
[1737624104058,0.7497,3218.2,3217.8,3.10769]
[1737624106985,0.7497,3218.2,3217.6,3.10786]
[1737624107185,0.7497,3218.2,3217.7,3.10778]
[1737624107790,0.7497,3218.2,3217.7,3.47621765]
[1737624108890,3.85709,3218.2,3217.7,3.47621765]
[1737624109197,3.85709,3218.2,3217.8,0.14169989]
[1737624110296,3.85709,3218.2,3217.9,0.14169989]
[1737624110592,3.10752,3218.0,3217.9,0.14169989]
[1737624110976,3.65752,3218.0,3217.9,0.14169989]
[1737624111378,4.40722,3218.0,3217.9,0.14169989]
[1737624111580,3.108,3217.5,3217.4,0.22677911]
[1737624111781,4.4077,3217.5,3217.4,0.22677911]
[1737624113473,4.4077,3217.5,3217.0,3.10847]
[1737624114750,5.02616504,3217.5,3217.0,3.10847]
[1737624114951,1.36816504,3217.5,3217.0,3.10847]
[1737624116196,1.36816504,3217.5,3217.0,6.21688]
[1737624116363,1.36816504,3217.5,3217.0,3.10841]
[1737624118505,1.36816504,3217.5,3217.0,3.1084]
[1737624119301,1.36816504,3217.5,3216.0,3.10938]
[1737624119302,1.49,3217.6,3217.3,3.10811]
[1737624119501,1.49,3217.6,3217.5,3.108]
[1737624119705,1.49,3217.6,3217.5,3.8815]
[1737624120756,0.60771488,3218.3,3218.0,3.10751]
[1737624121897,0.7497,3218.4,3218.0,3.10751]
[1737624122260,1.36705226,3218.4,3217.9,3.1076]
[1737624123214,2.7897,3218.3,3216.7,0.8258]
[1737624123505,3.0,3218.0,3217.4,3.10803]
[1737624123662,6.10757,3218.0,3217.4,3.10808]
[1737624123862,9.21518,3218.0,3217.4,3.10808]
[1737624124057,3.10764,3217.9,3217.2,0.8258]
[1737624124302,3.10764,3217.9,3217.3,3.10818]
[1737624124519,3.10748,3218.1,3217.4,3.10807]
[1737624124661,3.0,3218.1,3217.4,3.10807]
[1737624124857,3.10762,3217.9,3217.3,3.10818]
[1737624127403,3.1076,3218.0,3217.3,3.10818]
[1737624127608,3.10772,3217.8,3217.2,0.8258]
[1737624128205,3.73965166,3217.8,3217.2,0.8258]
[1737624128502,3.73965166,3217.8,3217.2,3.93408]
[1737624130716,3.73965166,3217.8,3217.2,0.8258]
[1737624130876,3.10806,3217.5,3216.8,3.88809]
[1737624131073,3.10813,3217.4,3216.8,3.88809]
[1737624132150,3.10813,3217.4,3216.9,0.14147056]
[1737624133519,3.73859413,3217.5,3216.9,3.10852]
[1737624134080,3.10795,3217.6,3217.0,3.10847]
[1737624134391,2.2397,3217.7,3217.2,3.10828]
[1737624134774,2.2397,3217.7,3217.3,0.7842]
[1737624135413,1.49,3217.7,3217.3,0.7842]
[1737624135612,1.49,3217.7,3217.4,3.10804]
[1737624137428,1.49,3217.7,3217.3,0.7842]
[1737624138728,3.10772,3217.8,3217.3,0.7842]
[1737624142434,3.85769,3217.6,3217.0,3.10845]
[1737624142891,3.108,3217.5,3217.0,3.10845]
[1737624143291,3.85769,3217.6,3217.0,3.10845]
[1737624143760,3.85769,3217.6,3217.1,0.14158529]
[1737624144849,0.63708483,3217.5,3217.1,0.14158529]
[1737624145057,0.63708483,3217.5,3217.2,0.14158529]
[1737624146320,0.63708483,3217.5,3217.0,3.10845]
[1737624147051,0.63708483,3217.5,3217.1,3.10835]
[1737624147362,0.63708483,3217.5,3217.1,3.24993497]
[1737624148462,0.63708483,3217.5,3217.2,0.14158497]
[1737624148831,0.7497,3217.6,3217.2,3.24987497]
[1737624149673,0.7497,3217.6,3217.3,0.14158497]
[1737624150715,1.49,3217.9,3217.6,3.10782]
[1737624150937,0.7497,3218.3,3217.7,3.1078]
[1737624151136,1.49,3218.4,3217.9,3.10761]
[1737624153084,0.61629612,3218.3,3217.9,3.10761]
[1737624154782,0.61629612,3218.3,3217.8,3.87606]
[1737624156069,0.61629612,3218.3,3217.9,0.14150157]
[1737624156645,3.72352612,3218.3,3217.9,0.14150157]
[1737624156979,3.10735,3218.2,3217.9,0.14150157]
[1737624157343,0.7497,3218.0,3217.1,0.8181]
[1737624157586,3.10787,3217.7,3217.1,3.92647]
[1737624158754,3.1078,3217.8,3217.2,0.14150294]
[1737624160090,3.10762,3217.9,3217.3,3.10815]
[1737624160240,3.85723,3218.0,3217.4,3.10808]
[1737624161385,0.62420738,3217.8,3217.4,3.10808]
[1737624161952,0.62420738,3217.8,3217.5,0.14150294]
[1737624162870,0.62420738,3217.8,3217.4,3.10808]
[1737624163202,3.10751,3218.1,3217.5,0.7553]
[1737624163761,3.10752,3218.0,3217.5,0.7553]
[1737624164260,3.10752,3218.0,3217.6,0.14150873]
[1737624164991,3.74229557,3218.0,3217.5,0.7553]
[1737624166596,1.49,3218.2,3217.7,3.10779]
[1737624166775,1.49,3218.2,3217.8,3.93195]
[1737624168297,1.49,3218.2,3218.0,3.10749]
[1737624169216,1.49,3218.2,3217.8,7.03957]
[1737624169811,1.49,3218.2,3217.8,3.93192]
[1737624170018,1.49,3218.2,3217.9,3.10755]
[1737624171316,0.61767996,3218.4,3217.9,3.10755]
[1737624171704,0.61767996,3218.4,3218.0,3.10743]
[1737624173731,3.72486996,3218.4,3217.9,3.10759]
[1737624174403,3.10704,3218.5,3218.0,3.10745]
[1737624175105,0.7497,3218.6,3218.0,3.10745]
[1737624175305,3.85664,3218.6,3218.0,3.10745]
[1737624175508,0.7497,3218.6,3218.1,3.10734]
[1737624175717,4.48925763,3218.6,3218.1,3.10734]
[1737624176031,4.48925763,3218.6,3218.0,3.1075]
[1737624176626,3.10707,3218.5,3218.0,3.1075]
[1737624178834,6.21418,3218.5,3217.8,7.03958]
[1737624179135,3.10707,3218.5,3217.9,3.10759]
[1737624179496,3.10707,3218.5,3217.8,0.8243]
[1737624179927,3.10723,3218.3,3217.8,3.93197]
[1737624180191,3.10723,3218.3,3217.9,0.14149822]
[1737624181766,3.10723,3218.3,3218.0,0.14149822]
[1737624182619,3.10742,3218.1,3218.0,0.14149822]
[1737624182843,3.85712,3218.1,3218.0,0.14149822]
[1737624183257,3.85712,3218.1,3217.6,3.86032]
[1737624183557,3.10772,3217.8,3217.3,0.8081]
[1737624184060,3.10772,3217.8,3217.4,0.36798136]
[1737624184557,3.1079,3217.6,3217.4,0.36798136]
[1737624184808,3.10798,3217.6,3217.4,0.36798136]
[1737624185621,3.10798,3217.6,3217.1,0.7811]
[1737624185850,3.10798,3217.6,3217.1,3.88948]
[1737624187052,0.7497,3218.3,3217.7,0.832]
[1737624187253,3.10743,3218.1,3217.7,0.832]
[1737624188379,3.10743,3218.1,3217.4,3.93455]
[1737624188565,3.1076,3218.0,3217.4,3.93455]
[1737624189139,3.10761,3217.9,3217.5,0.14145012]
[1737624189343,0.676504,3217.9,3217.5,0.14145012]
[1737624189555,3.65757,3218.0,3217.5,0.14145012]
[1737624189943,0.55,3218.0,3217.5,0.14145012]
[1737624190339,0.63432765,3218.2,3217.5,0.17253019]
[1737624190654,0.63432765,3218.2,3217.8,3.1077]
[1737624191166,0.63432765,3218.2,3217.9,0.7611]
[1737624191683,0.63432765,3218.2,3217.7,3.86889]
[1737624192688,3.74173765,3218.2,3217.7,0.7611]
[1737624192994,4.65060742,3218.2,3217.7,0.7611]
[1737624193999,3.10754,3218.0,3217.4,3.10806]
[1737624194156,3.10754,3218.0,3217.5,0.7538]
[1737624194699,0.55,3218.1,3217.5,0.7538]
[1737624194996,3.65743,3218.1,3217.6,3.1079]
[1737624195398,3.65743,3218.1,3217.6,3.24939938]
[1737624195989,0.55,3218.1,3217.6,3.24939938]
[1737624196200,3.10675,3218.8,3218.2,3.10724]
[1737624196399,1.49,3219.0,3218.4,3.10711]
[1737624196704,1.49,3219.0,3218.3,0.8083]
[1737624196705,1.49,3219.0,3218.7,3.10682]
[1737624196859,1.49,3219.0,3218.8,3.90711]
[1737624197298,1.49,3219.0,3218.8,0.8004]
[1737624197659,1.49,3219.0,3218.6,3.91498]
[1737624198156,1.49,3219.0,3218.7,0.14149938]
[1737624200017,1.49,3219.0,3218.6,3.91498]
[1737624200916,1.49,3219.0,3218.8,3.10666]
[1737624201105,1.49,3219.0,3218.9,3.10665]
[1737624201305,0.63711213,3219.3,3218.8,3.1067]
[1737624201480,0.63711213,3219.3,3219.0,3.10649]
[1737624202122,0.63711213,3219.3,3219.2,3.10636]
[1737624202324,0.63711213,3219.3,3219.2,3.91446]
[1737624207496,0.63711213,3219.3,3219.0,3.10646]
[1737624209437,0.63711213,3219.3,3219.1,3.10644]
[1737624209743,0.63711213,3219.3,3219.1,3.10642]
[1737624210240,0.63711213,3219.3,3218.4,3.10709]
[1737624210539,0.63711213,3219.3,3219.1,3.10642]
[1737624210936,0.63711213,3219.3,3219.2,3.10636]
[1737624215506,0.63711213,3219.3,3219.0,0.7999]
[1737624215906,0.63711213,3219.3,3219.2,3.10636]
[1737624218424,1.49,3219.8,3219.1,0.03106123]
[1737624218631,1.49,3219.8,3219.5,3.10597]
[1737624219732,1.49,3219.8,3219.3,3.10624]
[1737624220260,5.23074851,3219.8,3219.3,3.10624]
[1737624220425,2.12492851,3219.8,3219.4,3.10616]
[1737624221758,0.63492851,3219.8,3219.4,3.10616]
[1737624222057,0.63492851,3219.8,3219.3,3.10624]
[1737624222263,0.63492851,3219.8,3219.5,3.10605]
[1737624222463,0.63492851,3219.8,3219.3,3.1062]
[1737624223259,0.63492851,3219.8,3219.3,6.21239]
[1737624223561,0.63492851,3219.8,3219.3,3.10619]
[1737624225969,0.63492851,3219.8,3219.4,0.14125163]
[1737624227153,0.63492851,3219.8,3219.5,0.14125163]
[1737624228359,3.74071851,3219.8,3219.5,0.14125163]
[1737624228563,4.18976036,3219.8,3219.5,0.14125163]
[1737624228754,4.18976036,3219.8,3219.3,3.10619]
[1737624230566,4.18976036,3219.8,3219.4,0.1414715]
[1737624231765,4.18976036,3219.8,3219.5,0.1414715]
[1737624232070,3.10588,3219.7,3219.5,0.1414715]
[1737624232257,3.10597,3219.6,3219.5,0.1414715]
[1737624232630,3.85567,3219.6,3219.5,0.1414715]
[1737624233030,0.7497,3219.6,3219.1,3.33296209]
[1737624233886,0.7497,3219.6,3219.2,0.46558227]
[1737624234957,0.7497,3219.6,3219.2,3.57190227]
[1737624235157,0.7497,3219.6,3219.3,0.36813451]
[1737624235985,0.80453404,3219.7,3219.3,0.36813451]
[1737624236588,0.80453404,3219.7,3219.4,0.14157242]
[1737624237884,1.08397036,3219.8,3219.4,0.14157242]
[1737624238392,4.18975036,3219.8,3219.5,0.14157242]
[1737624239192,4.18975036,3219.8,3219.6,0.14157242]
[1737624240553,4.18975036,3219.8,3219.3,3.10623]
[1737624240876,3.74070851,3219.8,3219.1,0.03105968]
[1737624241044,3.74070851,3219.8,3219.2,3.1063]
[1737624241972,3.74070851,3219.8,3219.3,0.36827194]
[1737624242181,3.10593,3219.7,3219.3,0.36827194]
[1737624242475,3.8558,3219.5,3219.3,0.36827194]
[1737624243353,3.8558,3219.5,3219.4,0.14163615]
[1737624244900,3.10598,3219.6,3219.4,0.14163615]
[1737624246285,4.49045851,3219.8,3219.4,0.14163615]
[1737624246442,4.49045851,3219.8,3219.5,0.14163615]
[1737624246443,5.23950436,3219.8,3219.5,0.14163615]
[1737624246644,3.10597,3219.6,3219.5,0.14163615]
[1737624247777,0.7497,3218.8,3217.8,0.8331]
[1737624247981,3.10616,3219.4,3217.5,3.24988545]
[1737624247982,3.8571,3218.2,3217.5,4.03888545]
[1737624248296,0.7497,3218.6,3217.6,0.03107596]
[1737624248499,3.10667,3218.9,3218.2,3.89632]
[1737624248679,3.10682,3218.8,3218.2,3.89632]
[1737624248888,3.10667,3218.9,3218.2,3.92738944]
[1737624249104,0.60880398,3218.8,3218.2,3.89632]
[1737624249567,0.60880398,3218.8,3218.2,0.789]
[1737624249913,3.10691,3218.7,3218.2,0.789]
[1737624250766,3.10691,3218.7,3218.2,0.82006946]
[1737624251308,3.10691,3218.7,3218.2,0.789]
[1737624251516,3.10691,3218.7,3218.2,0.82006946]
[1737624252215,0.60880398,3218.8,3218.2,0.82006946]
[1737624252366,3.71557398,3218.8,3218.2,3.92731946]
[1737624252567,3.10685,3218.7,3218.2,0.789]
[1737624252761,0.60880398,3218.8,3218.2,3.92738947]
[1737624252968,3.10685,3218.7,3218.2,0.82006947]
[1737624253278,3.10685,3218.7,3218.2,0.789]
[1737624254008,3.10696,3218.6,3218.2,0.789]
[1737624254298,3.10685,3218.7,3218.2,0.789]
[1737624254668,6.21379,3218.7,3218.2,0.789]
[1737624254869,3.10697,3218.6,3218.2,0.789]
[1737624255368,3.10684,3218.7,3218.2,0.789]
[1737624255569,3.1072,3218.4,3217.9,0.7639]
[1737624256322,3.10723,3218.3,3217.9,0.7639]
[1737624256690,3.10739,3218.2,3217.7,0.7809]
[1737624256891,3.10739,3218.2,3217.8,0.03107384]
[1737624257204,3.10739,3218.2,3217.7,3.8887]
[1737624257615,3.10739,3218.2,3217.7,0.7809]
[1737624257927,3.10758,3218.0,3217.7,0.7809]
[1737624258486,6.21479,3218.2,3217.7,0.7809]
[1737624258686,3.10745,3218.1,3217.7,0.7809]
[1737624259136,3.10753,3218.0,3217.7,0.7809]
[1737624259430,3.729022,3218.0,3217.4,0.8192]
[1737624259729,3.10776,3217.8,3217.4,0.8192]
[1737624261544,3.10753,3218.0,3217.4,0.8192]
[1737624261703,3.10753,3218.0,3217.4,0.85027754]
[1737624262093,3.10753,3218.0,3217.5,3.10798]
[1737624264051,3.10753,3218.0,3217.4,0.8192]
[1737624264256,3.10762,3217.9,3217.4,0.8192]
[1737624264455,3.10772,3217.8,3217.4,0.8192]
[1737624265151,3.10784,3217.7,3217.2,0.7916]
[1737624266849,0.61503551,3217.8,3217.3,3.10817]
[1737624268042,3.10736,3218.2,3217.6,3.10789]
[1737624268725,3.10742,3218.1,3217.6,3.10789]
[1737624268928,3.85712,3218.1,3217.6,3.10789]
[1737624269127,3.85712,3218.1,3217.5,0.761]
[1737624269128,3.10755,3218.0,3217.5,0.761]
[1737624269814,3.10764,3217.9,3217.5,0.761]
[1737624270014,0.621519,3217.8,3217.5,0.761]
[1737624271342,3.729279,3217.8,3217.2,3.90462]
[1737624271655,3.10784,3217.7,3217.2,0.7964]
[1737624273823,3.10784,3217.7,3217.2,3.90465]
[1737624274719,3.10784,3217.7,3217.2,0.7964]
[1737624275028,0.7497,3217.6,3217.2,0.7964]
[1737624275227,0.7497,3217.6,3217.1,3.10837]
[1737624275616,0.7497,3217.6,3217.0,0.7708]
[1737624275814,3.85767,3217.6,3217.0,3.87926]
[1737624276755,3.85767,3217.6,3217.1,0.14085078]
[1737624277554,0.62193624,3217.5,3217.1,0.14085078]
[1737624277855,4.54088445,3217.5,3217.1,0.14085078]
[1737624278065,3.10821,3217.3,3217.1,0.14085078]
[1737624278356,7.64895445,3217.5,3216.8,6.21723]
[1737624278566,7.64895445,3217.5,3216.8,3.1086]
[1737624278797,3.10811,3217.4,3216.8,3.1086]
[1737624279261,3.10811,3217.4,3216.9,0.1409362]
[1737624279778,3.10811,3217.4,3216.9,3.2495062]
[1737624279956,1.43287445,3217.5,3217.0,3.10848]
[1737624280650,0.62193624,3217.5,3217.0,3.10848]
[1737624281276,6.85768,3217.6,3217.0,3.10848]
[1737624281277,7.5978,3217.8,3217.1,0.8099]
[1737624281496,8.3475,3217.8,3217.2,3.10828]
[1737624282293,3.0,3217.6,3217.2,3.10828]
[1737624283885,3.61117396,3217.6,3217.1,0.8099]
[1737624284092,6.71909396,3217.6,3217.1,0.8099]
[1737624284293,3.72046037,3217.5,3217.1,0.8099]
[1737624284489,3.72046037,3217.5,3217.0,3.10848]
[1737624285093,3.72046037,3217.5,3216.9,0.8124]
[1737624285094,3.10815,3217.4,3216.9,0.8124]
[1737624285645,3.10815,3217.4,3217.1,0.14097672]
[1737624286145,3.72046037,3217.5,3217.1,0.14097672]
[1737624286401,3.1082,3217.3,3217.1,0.14097672]
[1737624287097,3.1082,3217.3,3216.9,0.8124]
[1737624287761,0.73316343,3217.4,3216.9,3.92097]
[1737624287971,6.21609,3217.5,3216.9,3.92097]
[1737624288481,3.1081,3217.4,3217.0,0.14102428]
[1737624289248,3.10801,3217.5,3217.0,3.24950428]
[1737624289682,3.10801,3217.5,3217.1,0.14102428]
[1737624290672,6.21609,3217.5,3217.1,0.14102428]
[1737624290867,4.0907364,3217.5,3217.1,0.14102428]
[1737624291383,3.1081,3217.4,3217.1,0.14102428]
[1737624291586,3.10827,3217.3,3217.1,0.14102428]
[1737624291794,3.10827,3217.3,3217.2,0.14102428]
[1737624294375,3.10827,3217.3,3216.9,0.8124]
[1737624295083,3.10827,3217.3,3216.4,0.8174]
[1737624295084,3.10878,3216.7,3216.4,0.8174]
[1737624295269,3.10888,3216.6,3216.3,0.23513283]
[1737624295477,0.7497,3217.0,3216.1,1.05253283]
[1737624295478,3.10907,3216.4,3216.1,1.05253283]
[1737624295788,3.10918,3216.3,3216.1,0.23513283]
[1737624296000,6.21843,3216.3,3216.1,0.23513283]
[1737624296155,3.10925,3216.2,3216.1,0.23513283]
[1737624297171,3.10925,3216.2,3215.7,0.99207768]
[1737624297379,3.10942,3216.1,3215.6,0.7556]
[1737624297779,3.10925,3216.2,3215.6,3.86542]
[1737624297979,6.2186,3216.2,3215.6,3.86542]
[1737624298495,6.2186,3216.2,3215.7,0.14086037]
[1737624298664,3.10925,3216.2,3215.7,0.14086037]
[1737624299670,3.9497615,3216.2,3215.7,0.14086037]
[1737624299873,3.10942,3216.1,3215.6,0.7556]
[1737624300288,3.10951,3216.0,3215.6,0.7556]
[1737624300463,3.85921,3216.0,3215.5,0.22539455]
[1737624301155,3.85921,3216.0,3215.4,3.9357]
[1737624301356,4.70098228,3216.0,3215.4,0.8257]
[1737624301561,4.70098228,3216.0,3215.3,0.22539455]
[1737624301562,3.10977,3215.7,3215.3,0.22539455]
[1737624301772,3.10973,3215.8,3215.3,0.22539455]
[1737624302079,0.7497,3215.5,3215.3,0.22539455]
[1737624302273,3.11003,3215.4,3215.3,0.22539455]
[1737624302488,3.806995,3215.4,3215.3,0.22539455]
[1737624302813,3.806995,3215.4,3214.8,3.34523025]
[1737624302814,0.696965,3215.4,3214.8,3.11056]
[1737624303111,0.7497,3215.5,3215.0,3.1104]
[1737624303416,3.1102,3215.3,3214.7,0.8186]
[1737624303564,0.7497,3215.5,3214.7,0.8186]
[1737624303767,3.11029,3215.2,3214.7,0.8186]
[1737624303963,3.6601,3215.4,3214.7,0.8186]
[1737624304309,0.61714341,3215.4,3214.8,3.11051]
[1737624305078,0.61714341,3215.4,3214.9,3.11043]
[1737624305280,0.61714341,3215.4,3215.0,3.11039]
[1737624305484,3.0,3215.6,3215.1,3.11029]
[1737624305678,3.0,3215.6,3215.0,3.1104]
[1737624305866,3.834945,3215.6,3215.0,3.1104]
[1737624306081,0.7497,3215.7,3215.2,3.92386]
[1737624306279,0.7497,3215.7,3215.0,3.11039]
[1737624306997,0.7497,3215.7,3215.1,3.1103]
[1737624307202,1.49,3215.8,3215.3,3.1101]
[1737624307531,1.49,3215.8,3215.3,3.9238]
[1737624307719,2.10910423,3215.8,3215.3,3.9238]
[1737624308121,5.21877423,3215.8,3215.1,3.11028]
[1737624308919,0.60686368,3215.7,3215.1,3.11028]
[1737624309276,3.71664368,3215.7,3215.0,3.86841]
[1737624310814,0.60686368,3215.7,3215.0,3.86841]
[1737624310986,0.60686368,3215.7,3215.2,3.1102]
[1737624311422,1.50038247,3215.7,3215.2,3.1102]
[1737624311631,0.7497,3215.6,3215.0,3.86841]
[1737624311779,0.7497,3215.6,3214.8,3.8773]
[1737624312129,0.7497,3215.2,3214.5,0.7632]
[1737624312418,3.11038,3215.1,3214.5,0.7632]
[1737624312828,3.11067,3214.8,3214.5,0.7632]
[1737624313013,3.11067,3214.8,3214.3,0.81]
[1737624313397,3.1108,3214.6,3214.1,1.50121477]
[1737624313639,3.1108,3214.6,3214.1,0.70381477]
[1737624313802,3.1108,3214.6,3214.0,3.90874]
[1737624314291,3.1108,3214.6,3214.0,0.7974]
[1737624314292,3.11096,3214.5,3214.0,0.7974]
[1737624314497,3.11122,3214.2,3213.7,0.7794]
[1737624314733,3.86092,3214.2,3213.7,0.7794]
[1737624314947,3.11129,3214.1,3213.6,3.11171]
[1737624315412,3.11129,3214.1,3213.1,0.23467025]
[1737624315413,3.11161,3213.8,3213.1,3.94434]
[1737624315609,0.7497,3213.6,3212.7,0.8321]
[1737624315823,3.11187,3213.5,3212.9,3.11239]
[1737624316027,0.7497,3213.6,3212.7,0.8321]
[1737624316237,3.11225,3213.2,3212.6,0.23467025]
[1737624316802,3.11241,3213.0,3212.6,0.23467025]
[1737624317018,3.11241,3213.0,3212.4,3.11292]
[1737624317217,3.11206,3213.3,3212.4,3.11293]
[1737624317419,3.11206,3213.3,3212.7,3.11264]
[1737624317905,3.74431148,3213.3,3212.7,3.11264]
[1737624319166,3.11216,3213.2,3212.5,3.11277]
[1737624319764,0.63225148,3213.3,3212.5,3.11277]
[1737624319916,0.63225148,3213.3,3212.7,3.11263]
[1737624320532,3.74432148,3213.3,3212.7,3.11263]
[1737624320753,4.63395263,3213.3,3212.7,3.11263]
[1737624320954,4.63395263,3213.3,3212.5,3.11277]
[1737624321135,3.11219,3213.2,3212.5,3.11277]
[1737624321473,3.11233,3213.1,3212.3,3.86546]
[1737624321635,3.11233,3213.1,3212.4,3.11292]
[1737624321821,3.88695826,3213.1,3212.4,3.11292]
[1737624322262,3.88695826,3213.1,3212.3,3.86546]
[1737624322421,0.77462826,3213.1,3212.6,3.11272]
[1737624322765,0.77462826,3213.1,3212.3,0.7525]
[1737624322766,3.66242,3213.0,3212.3,0.7525]
[1737624323852,3.66242,3213.0,3212.4,3.11287]
[1737624324034,3.11253,3212.9,3212.2,3.11303]
[1737624324238,0.7497,3212.8,3212.3,3.11301]
[1737624324768,0.7497,3212.8,3212.2,3.11303]
[1737624325066,1.339923,3212.8,3212.2,3.11303]
[1737624325418,1.339923,3212.8,3212.3,3.11296]
[1737624325818,0.7497,3212.8,3212.3,3.11296]
[1737624326073,1.49,3212.9,3212.5,3.11283]
[1737624326365,1.49,3212.9,3212.7,3.11264]
[1737624327128,1.49,3212.9,3212.8,3.88854]
[1737624327749,1.49,3213.7,3213.0,3.11232]
[1737624327945,1.49,3213.7,3213.6,3.11177]
[1737624328254,1.49,3213.7,3213.4,3.11196]
[1737624328482,1.49,3213.7,3213.2,3.11209]
[1737624328691,1.49,3213.7,3213.0,3.11233]
[1737624328843,3.86149,3213.6,3213.0,3.11233]
[1737624329041,4.396639,3213.6,3213.0,3.11233]
[1737624329557,1.284849,3213.6,3213.1,3.11221]
[1737624329782,0.7497,3213.6,3213.2,3.11209]
[1737624329985,1.49,3213.7,3213.2,3.11209]
[1737624330168,1.49,3213.7,3213.4,3.11195]
[1737624331599,0.7497,3214.2,3213.6,3.11177]
[1737624331793,0.7497,3214.2,3213.7,3.11167]
[1737624331983,1.284778,3214.2,3213.6,3.11177]
[1737624332702,1.284778,3214.2,3213.8,3.11153]
[1737624334195,1.49,3214.3,3213.9,3.1114]
[1737624334394,1.49,3214.3,3214.0,3.11137]
[1737624334693,1.49,3214.3,3213.8,3.11151]
[1737624335219,1.49,3214.3,3213.9,3.11142]
[1737624335580,1.49,3214.3,3213.8,3.11151]
[1737624335910,1.49,3214.3,3214.0,3.11136]
[1737624336198,1.49,3214.3,3213.8,3.11151]
[1737624337767,2.09109537,3214.3,3213.8,3.11151]
[1737624337982,5.20223537,3214.3,3213.6,3.11176]
[1737624338169,2.09109537,3214.3,3213.9,0.14004941]
[1737624339307,2.09109537,3214.3,3213.9,3.25150941]
[1737624339609,2.09109537,3214.3,3213.9,3.11146]
[1737624339816,2.09109537,3214.3,3213.8,3.11155]
[1737624339986,0.82021254,3214.2,3213.8,3.11155]
[1737624340378,0.82021254,3214.2,3213.8,3.1115]
[1737624340591,2.09109537,3214.3,3213.8,3.11152]
[1737624341813,2.09109537,3214.3,3213.9,3.11145]
[1737624342112,2.09109537,3214.3,3213.8,3.11152]
[1737624342312,5.20222537,3214.3,3213.8,3.11152]
[1737624342515,2.09109537,3214.3,3214.0,0.14045549]
[1737624342812,7.41099,3214.1,3214.0,0.14045549]
[1737624343315,8.90099,3214.1,3214.0,0.14045549]
[1737624343713,0.7497,3213.4,3213.0,3.11228]
[1737624346175,0.7497,3213.4,3212.8,3.11252]
[1737624346381,3.86167,3213.4,3212.8,3.11252]
[1737624346620,3.86167,3213.4,3212.6,3.11271]
[1737624346621,0.386167,3213.3,3212.9,0.1406979]
[1737624346805,3.11218,3213.2,3212.9,0.1406979]
[1737624347831,3.11235,3213.0,3212.4,3.11284]
[1737624348829,0.55,3213.1,3212.6,3.11273]
[1737624350440,0.55,3213.1,3212.7,0.14070713]
[1737624350737,0.386167,3213.3,3212.7,0.14070713]
[1737624350738,3.11207,3213.3,3212.8,3.11254]
[1737624351802,3.11207,3213.3,3212.6,6.22538]
[1737624352132,3.11226,3213.1,3212.6,3.11265]
[1737624353796,3.11226,3213.1,3212.5,3.11283]
[1737624354132,3.11226,3213.1,3212.7,0.1406874]
[1737624355239,0.55,3213.1,3212.7,0.1406874]
[1737624355438,0.55,3213.1,3212.6,3.11273]
[1737624358349,2.04,3213.1,3212.6,3.11273]
[1737624361150,2.04,3213.1,3212.7,3.11262]
[1737624361494,1.49,3213.1,3212.9,3.11245]
[1737624362165,1.49,3213.1,3213.0,3.11235]
[1737624363955,0.61967234,3213.3,3213.0,3.11235]
[1737624364158,1.49,3213.8,3213.2,0.7501]
[1737624364368,1.49,3213.8,3213.7,3.11167]
[1737624364526,1.49,3213.8,3213.7,3.86177]
[1737624365517,1.49,3213.8,3213.5,3.11183]
[1737624365942,1.49,3213.8,3213.7,3.11167]
[1737624367229,0.61886288,3214.1,3213.7,3.11167]
[1737624367532,1.49,3214.3,3213.6,0.7639]
[1737624367725,1.49,3214.3,3214.0,3.11136]
[1737624367928,2.12635966,3214.3,3214.0,3.11136]
[1737624369121,2.12635966,3214.3,3214.0,3.11132]
[1737624369533,2.12635966,3214.3,3214.1,0.8246]
[1737624373235,0.63635966,3214.3,3214.1,0.8246]
[1737624373761,0.63635966,3214.3,3213.8,3.11153]
[1737624374636,0.63635966,3214.3,3213.9,3.11148]
[1737624378369,0.63635966,3214.3,3213.8,3.1115]
[1737624381046,0.63635966,3214.3,3213.9,3.11147]
[1737624384069,3.111,3214.4,3213.9,3.11147]
[1737624384278,3.111,3214.4,3213.7,3.94178]
[1737624384480,3.1111,3214.3,3213.8,3.11156]
[1737624384778,4.41686342,3214.4,3213.8,3.11156]
[1737624385076,3.1111,3214.3,3213.8,3.11156]
[1737624385441,3.11154,3213.9,3213.4,3.8748]
[1737624385641,3.86116,3214.0,3213.2,0.7629]
[1737624385943,3.1115,3213.9,3213.4,3.11196]
[1737624386963,3.1115,3213.9,3213.5,0.14074236]
[1737624387652,3.11174,3213.7,3213.5,0.14074236]
[1737624388580,3.86147,3213.6,3213.5,0.14074236]
[1737624388875,3.11187,3213.5,3213.2,0.2253858]
[1737624389268,0.7497,3213.6,3213.2,0.2253858]
[1737624389440,3.11174,3213.7,3213.2,3.3375358]
[1737624389779,3.66159,3213.8,3213.3,0.819]